Cogmind - Beta 16 @@@ ROGUE MODE // 2025.11.11 @ 18:50:04 Player: chebyrekser Result: Destroyed by UI-UMP(R) with Subdweller Beam Cannon Performance ------------- Evolutions (0) 0 Regions Visited (2) 400 Robots Destroyed (35) 175 Value Destroyed (725) 725 Prototype IDs (12) 240 Alien Tech Used (0) 0 Bonus (-18) -18 TOTAL SCORE: 1522 Bonus ------- Friendly Fire -18 Cogmind --------- Core Integrity 0/250 Matter 67/300 Energy 250/250 System Corruption 2% Temperature Cool (9) Movement Rolling (200) Ox8 Location -10/Subcaves Parts ------- > --- POWER (1) -------- Ion Engine > --- PROPULSION (2) --- Wheel > --- UTILITY (2) ------ Huge Storage Unit Seismic Detector > --- WEAPON (2) ------- Battle Rifle > --- INVENTORY (25) --- Ion Engine Subdweller Power Source Subdweller Power Source Light Treads Light Treads Aluminum Leg Cargo Legs Compact Wheel Subdweller Monowheel Flightbrick Heat Sink Large Storage Unit Transport Network Coupler Core Shielding Authchip [Propulsion] Authchip [Weapon] Medium Laser Medium Laser Assault Rifle Light Assault Rifle Mining Laser Peak State ------------ > --- POWER ------------ Ion Engine > --- PROPULSION ------- Wheel Compact Wheel > --- UTILITY ---------- Huge Storage Unit Core Shielding > --- WEAPON ----------- Battle Rifle Mining Laser > --- INVENTORY -------- Ion Engine Subdweller Power Source Subdweller Power Source Light Treads Light Treads Light Treads Aluminum Leg Cargo Legs Subdweller Monowheel Flightbrick Heat Sink Large Storage Unit Seismic Detector Transport Network Coupler Authchip [Propulsion] Authchip [Weapon] Medium Laser Medium Laser Medium Laser Assault Rifle Light Assault Rifle [Rating: 16] Favorites ----------- Power Light Ion Engine Engine Light Ion Engine Propulsion Compact Wheel Treads Light Treads Leg Aluminum Leg Wheel Compact Wheel Utility Huge Storage Unit Device Seismic Detector Storage Huge Storage Unit Protection Light Armor Plating Weapon Assault Rifle Energy Gun Medium Laser Ballistic Gun Assault Rifle Ballistic Cannon Light Cannon Special Weapon Mining Laser Build | -11 -10 -10 ------- Run | Yrd Mat Sub Slots Evolved . | . . . Power . | . . . Propulsion . | . . . Utility . | . . . Weapon . | . . . Parts Attached 23 | 6 10 7 Power 3 | . 2 1 Engine 3 | . 2 1 Core . | . . . Reactor . | . . . Propulsion 6 | 2 3 1 Treads 3 | 1 1 1 Leg 1 | . 1 . Wheel 2 | 1 1 . Hover . | . . . Flight . | . . . Utility 7 | 2 2 3 Device 3 | 1 . 2 Storage 2 | 1 1 . Processor . | . . . Hackware . | . . . Protection 2 | . 1 1 Artifact . | . . . Weapon 7 | 2 3 2 Energy Gun 2 | . 2 . Energy Cannon . | . . . Ballistic Gun 3 | 2 . 1 Ballistic Cannon 1 | . . 1 Launcher . | . . . Special Weapon 1 | . 1 . Impact Weapon . | . . . Slashing Weapon . | . . . Piercing Weapon . | . . . Special Melee Weapon . | . . . Unidentified Prototypes . | . . . Parts Lost 4 | . . 4 Power . | . . . Propulsion 2 | . . 2 Utility 1 | . . 1 Weapon 1 | . . 1 Highest Loss Streak 2 | . . 2 To Critical Strikes . | . . . Average Backups 19 | 6 19 23 Power 2 | 1 2 3 Propulsion 5 | 3 5 6 Utility 7 | . 8 8 Weapon 4 | . 3 5 Tool/Special . | . . . Unused Backups 28 | 1 6 21 Power 5 | . 1 4 Propulsion 8 | . 2 6 Utility 11 | . 2 9 Weapon 4 | 1 1 2 Tool/Special . | . . . Average Slot Usage (%) 98 | . 98 99 Engine 13 | . 12 14 Treads 5 | . 6 3 Wheel 22 | . 21 23 Device 9 | . 10 7 Storage 14 | . 14 14 Protection 4 | . 3 5 Energy Gun 6 | . 7 3 Ballistic Gun 15 | . 17 13 Ballistic Cannon 2 | . . 6 Special Weapon 3 | . 3 5 Peak Build Rating 16 | 6 11 16 Average Rating 9 | 4 9 13 On Entrance 5 | . 6 10 Avg Prop Armor Cover (%) 11 | 5 13 . Naked Turns . | . . . Heaviest Build 91 | 9 91 91 Greatest Support 40 | 20 40 26 Greatest Overweight (x) 8 | . 5 8 Average Overweight (x) 2 | . 2 3 Largest Inventory Capacity 25 | 8 25 25 Average Capacity 21 | 7 21 25 Most Carried 25 | 8 25 25 Average Carried 20 | 6 20 24 Final Capacity 25 | 8 25 25 Final Carried 25 | 8 25 25 Class Distribution -------------------- 98% | Mutant Dominant Class ---------------- Mutant | -10/Materials Mutant | -10/Subcaves Resources | -11 -10 -10 ----------- Run | Yrd Mat Sub Matter Collected 1238 | 344 637 257 Remotely . | . . . Salvage Created 1103 | 234 679 190 Parts 71 | 20 44 7 Haulers Intercepted 2 | . 2 . Recyclers Shooed 2 | 1 1 . Parts Field Recycled . | . . . Retrieved Matter . | . . . Parts Self-Destructed 8 | . . 8 Prevented . | . . . Parts Restored . | . . . Kills | -11 -10 -10 ------- Run | Yrd Mat Sub Combat Hostiles Destroyed 20 | . 13 7 Guns 16 | . 13 3 Cannons 4 | . . 4 Classes Destroyed 8 | 2 5 1 Tunneler 7 | 7 . . Hauler 2 | . 2 . Recycler 2 | 1 1 . Operator 1 | . 1 . Watcher 3 | . 3 . Swarmer 6 | . 3 3 Grunt 10 | . 10 . Subdweller 4 | . . 4 Best Kill Streak 4 | 4 3 3 Combat Bots Only 3 | . 3 3 Max Kills in Single Turn 1 | 1 1 1 Gunslinging . | . . . Exploded . | . . . Melee . | . . . Uniques/NPCs Destroyed . | . . . Combat | -11 -10 -10 -------- Run | Yrd Mat Sub Hostile Shots Fired 97 | . 44 53 Missed 26 | . 13 13 Hits 71 | . 31 40 Projectile 71 | . 31 40 Critical Strikes 1 | . . 1 Damage Taken 1117 | . 359 758 Core 264 | . 100 164 Absorbed by Shields . | . . . Regen/Repaired (Parts) 49 | . 49 . Core Remaining (%) 100 | 100 . . Volleys Fired 148 | 21 93 34 Largest 2 | 2 2 2 Hottest 100 | 40 100 100 Shots Fired 260 | 42 164 54 Gun 215 | 42 143 30 Cannon 20 | . . 20 Launcher . | . . . Special 25 | . 21 4 Kinetic 182 | 42 110 30 Thermal 78 | . 54 24 Explosive . | . . . Electromagnetic . | . . . Robot Hit Streak 12 | 10 12 12 Robot Miss Streak 4 | 3 4 3 Penetration Max . | . . . Secondary Targets . | . . . Shots Hit Robots 148 | 25 86 37 Core Hits 61 | 11 38 12 Critical Kills . | . . . Critical Parts Destroyed 1 | . 1 . Critical Strikes 5 | . 2 3 Burn 4 | . 1 3 Destroy 1 | . 1 . Melee Attacks . | . . . Impact . | . . . Slashing . | . . . Piercing . | . . . Sneak Attacks . | . . . Combat Hostiles . | . . . Follow-up Attacks . | . . . Damage Inflicted 1903 | 320 998 585 Guns 1616 | 320 969 327 Cannons 258 | . . 258 Explosions 5 | . 5 . Melee . | . . . Ramming . | . . . Kinetic 1400 | 320 707 373 Thermal 498 | . 286 212 Explosive . | . . . Electromagnetic 5 | . 5 . Impact . | . . . Slashing . | . . . Piercing . | . . . Highest Corruption 2 | . 2 2 Average Corruption 2 | . 2 2 Corruption Purged . | . . . Corruption Blocked . | . . . Effects 15 | . 7 8 Message Errors 5 | . 2 3 Matter Fused 3 | . 1 2 Heat Flow Errors 3 | . 1 2 Energy Discharges 1 | . . 1 Data Loss (major) 3 | . 3 . Overload Shots . | . . . Overflow Damage . | . . . Projectiles . | . . . Explosions . | . . . Melee . | . . . Knockbacks 1 | . . 1 Impact . | . . . Kinetic 1 | . . 1 Secondary . | . . . Self-Inflicted Damage . | . . . Shots . | . . . Rammed . | . . . Targets Rammed . | . . . Kicked . | . . . Crushed . | . . . Highest Temperature 270 | . 270 168 Average Temperature 40 | . 39 75 Received Heat Transfer 360 | . 177 183 Siege Activations . | . . . Martial Activations . | . . . Shielding Activations . | . . . Robots Disrupted . | . . . Combat Hostiles . | . . . Robots Corrupted . | . . . Combat Hostiles . | . . . Parts Fried . | . . . Impact Corruptions . | . . . Robots Melted . | . . . Combat Hostiles . | . . . Parts Melted 1 | . 1 . Heat Transferred 1645 | . 794 851 Parts Sabotaged . | . . . Parts Stolen . | . . . Parts Stripped . | . . . Power Chain Reactions . | . . . Alert | -11 -10 -10 ------- Run | Yrd Mat Sub Maximum Alert Level . | . . . Low Security (%) 100 | 100 100 . Level 1 . | . . . Level 2 . | . . . Level 3 . | . . . Level 4 . | . . . Level 5 . | . . . High Security . | . . . Max Security . | . . . Peak Influence 101 | 15 101 . Initial 3 | . 3 . Average 31 | 2 35 . Influence Increases 593 | 40 493 60 Destroy 0b10 Robot/C 320 | . 260 60 Destroy 0b10 Robot/NC 75 | 40 35 . Destroy Leader 60 | . 60 . Successful Hack 17 | . 17 . Select Force Hacks 60 | . 60 . Disable Machine 15 | . 15 . Destroy Structure 16 | . 16 . Partial Spotted 15 | . 15 . Lose Combat Pursuer 15 | . 15 . Influence Decreases 593 | 35 411 147 Entered New Map 45 | . 2 43 Time Decay 501 | 35 362 104 Purge Threat 47 | . 47 . Squads Dispatched 3 | . 3 . Investigation 2 | . 2 . Extermination . | . . . Reinforcement 1 | . 1 . Assault . | . . . Garrison . | . . . Intercept . | . . . Searches Triggered . | . . . Construction Impeded . | . . . Haulers Reinforced . | . . . Active Scanning Responses . | . . . Cargo Convoy Interrupts . | . . . Stealth | -11 -10 -10 --------- Run | Yrd Mat Sub Distress Signals 1 | . 1 . Communications Jammed . | . . . Distress Signals . | . . . Times Spotted 38 | . 29 9 Peak Tracking Total 4 | . 4 3 Tactical Retreats 1 | . 1 . Traps | -11 -10 -10 ------- Run | Yrd Mat Sub Traps Triggered 1 | . 1 . Indirectly . | . . . Trap Hack Attempts . | . . . Triggered . | . . . Disarmed . | . . . Reprogrammed . | . . . Reused . | . . . Traps Extracted . | . . . Installed . | . . . Triggered . | . . . Machines | -11 -10 -10 ---------- Run | Yrd Mat Sub Machines Disabled 2 | . 1 1 Max in Single Turn 1 | . 1 1 Machines Repaired . | . . . Machines Dismantled . | . . . Machines Sabotaged . | . . . Overloaded Fab Kills . | . . . Hacking | -11 -10 -10 --------- Run | Yrd Mat Sub Machines Accessed 11 | . 10 1 Terminals 7 | . 7 . Fabricators . | . . . Repair Stations 1 | . 1 . Recycling Units 2 | . 2 . Scanalyzers . | . . . Garrison Access . | . . . Total Hacks 28 | . 27 1 Successful 19 | . 18 1 Failed 9 | . 9 . Catastrophic . | . . . Database Lockouts . | . . . Manual 22 | . 22 . Terminals 21 | . 21 . Fabricators . | . . . Repair Stations 2 | . 2 . Recycling Units 4 | . 4 . Scanalyzers . | . . . Garrison Access . | . . . Terminal Hacks 4 | . 3 1 Robot Analysis 2 | . 2 . Unreport Threat 1 | . 1 . Proto ID Catalog 1 | . . 1 Fabricator Hacks . | . . . Repair Station Hacks 2 | . 2 . Scan Component 1 | . 1 . Repair 1 | . 1 . Recycling Unit Hacks 2 | . 2 . Retrieve Components 2 | . 2 . Scanalyzer . | . . . Garrison Access Hacks . | . . . Unauthorized Hacks 11 | . 11 . Terminals 9 | . 9 . Assimilate 1 | . 1 . Botnet 2 | . 2 . Operators 1 | . 1 . Skim 5 | . 5 . Fabricators . | . . . Repair Stations . | . . . Recycling Units 2 | . 2 . Tunnel 2 | . 2 . Scanalyzers . | . . . Garrison Access . | . . . Data Cores Recovered . | . . . Used . | . . . Hacking Detections 9 | . 9 . Full Trace Events . | . . . Feedback Events . | . . . Feedback Blocked . | . . . Robot Schematics Acquired . | . . . Robots Built . | . . . Authchips . | . . . Time . | . . . Total Robot Build Rating . | . . . Part Schematics Acquired . | . . . Parts Built . | . . . Authchips . | . . . Time . | . . . Total Part Build Rating . | . . . Part Studies Acquired . | . . . Parts Repaired 1 | . 1 . Time 26 | . 26 . Parts Recycled . | . . . Recycled Matter . | . . . Retrieved Matter . | . . . Retrieved Components 14 | . 14 . Parts Scanalyzed . | . . . Part Schematics Acquired . | . . . Parts Damaged . | . . . Bothacking | -11 -10 -10 ------------ Run | Yrd Mat Sub Used RIF Installer . | . . . Robots Hacked . | . . . Non-combat . | . . . Combat . | . . . Robot Hacks Applied . | . . . Relay Couplers Released . | . . . Fabnet Peak Effective % . | . . . Robots Rewired . | . . . Allies Hacked . | . . . Hacks Repelled . | . . . Allies | -11 -10 -10 -------- Run | Yrd Mat Sub Total Allies 1 | . 1 . Largest Group 1 | . 1 1 Highest-Rated Group 10 | . 10 10 Highest-Rated Ally 10 | . 10 10 Total Orders 1 | . . 1 STAY 1 | . . 1 Ally Attacks . | . . . Total Damage . | . . . Kills . | . . . Allies Corrupted . | . . . Allies Melted . | . . . Intel | -11 -10 -10 ------- Run | Yrd Mat Sub Active Infowar (turns) 1867 | 49 1318 500 Seismic 1865 | 49 1318 498 ECM 2 | . . 2 Robot Analysis Total 2 | . 2 . Derelict Logs Recovered . | . . . Drone Launches . | . . . Drone Recoveries . | . . . Exploration | -11 -10 -10 ------------- Run | Yrd Mat Sub Turns Passed 2931 | 238 1810 883 Spaces Moved 1602 | 113 975 514 Core 1 | 1 . . Treads 100 | 78 22 . Legs . | . . . Wheels 1501 | 34 953 514 Hover . | . . . Flight . | . . . Fastest Speed 50 | 50 100 135 Average Speed 132 | 140 130 135 Slowest Speed 480 | 160 480 200 Overloaded Moves . | . . . Propulsion Burnouts . | . . . Robots Hopped . | . . . Potential Cave-ins . | . . . Cave-ins Triggered . | . . . Exploration Rate (%) 45 | 5 99 32 Regions Visited 2 Branch Regions 1 Pre-discovered Areas 2 | . 2 . Known Exits Taken . | . . . Unknown Exits Taken 2 | 1 1 . Scrap Searched . | . . . Spaces Dug 12 | . 12 . Terrain Destroyed 19 | . 19 . Melee . | . . . Projectile 19 | . 19 . AOE . | . . . Terrain Rammed . | . . . Walls Destroyed . | . . . Machines Disabled . | . . . Actions | -11 -10 -10 --------- Run | Yrd Mat Sub Total 2084 | 151 1302 631 Wait 182 | . 147 35 Move 1600 | 112 974 514 Hop . | . . . Pick Up 47 | 10 29 8 Fast Attach 6 | 6 . . Attach 4 | . 2 2 Detach . | . . . Swap 72 | . 44 28 Drop 25 | 2 13 10 Fire 148 | 21 93 34 Melee . | . . . Ram . | . . . Kick . | . . . Crush . | . . . Escape Stasis . | . . . Rewire . | . . . Trap . | . . . Miscellaneous . | . . . Route ------- -11/Scrapyard -10/Materials (discovered 5 exits: [*Mat x3] / [*Min] / *Sub) -10/Subcaves (discovered 4 exits: *Mat x2 / Rec / [*Scr]) History --------- Turn | Location | Event 2 | -11/Scrapyard | Met Revision 17 17 | -11/Scrapyard | Discovered new exit (range 15) 239 | -11/Scrapyard | Entered Materials 313 | -10/Materials | Build established: Mutant 354 | -10/Materials | Discovered new exit (range 13) 527 | -10/Materials | Discovered new exit (range 8) 616 | -10/Materials | Discovered new exit (range 3) 1035 | -10/Materials | Discovered new exit (range 3) 1319 | -10/Materials | Discovered new exit (range 8) 1351 | -10/Materials | Learned location of 2 exits from Mines 1420 | -10/Materials | Learned location of 2 exits from Mines 1464 | -10/Materials | Repaired Assault Rifle 1479 | -10/Materials | Learned location of 2 exits from Subcaves 1528 | -10/Materials | Learned location of 3 exits from Materials 1566 | -10/Materials | Learned 4 Subcaves zone layouts 1608 | -10/Materials | Learned 2 Storage zone layouts 1631 | -10/Materials | Learned location of 1 exit from Recycling 1761 | -10/Materials | Learned location of 3 exits from Materials 2049 | -10/Materials | Entered Subcaves 2049 | -10/Subcaves | Accompanied by 1 ally 2050 | -10/Subcaves | Approached by a straggling Scientist 2050 | -10/Subcaves | Identified exit to Materials 2051 | -10/Subcaves | Identified exit to Recycling 2088 | -10/Subcaves | Shifting Twisted Machinery released Hvy. Riot Gun 2139 | -10/Subcaves | A Subdweller sparked back to life 2139 | -10/Subcaves | A Subdweller sparked back to life 2181 | -10/Subcaves | Found Prototype Leg 2306 | -10/Subcaves | Scientist uncovered a shortcut to Scraptown 2641 | -10/Subcaves | Visited 4L-MR0's lab 2646 | -10/Subcaves | Identified Cargo Legs 2661 | -10/Subcaves | Found Flightbrick 2923 | -10/Subcaves | Core integrity fell below 50% 2929 | -10/Subcaves | Core integrity fell below 20% 2932 | -10/Subcaves | Destroyed by UI-UMP(R) with Subdweller Beam Cannon Last Messages --------------- them are even willing to come in here given their fear of my usual visitors." 02657_ Dropped Lgt. Cannon. 02657_ Identified ECM Suite. 02660_ System corrupted: Heat flow error (+135). 02660_ 4L-MR0 mumbles: "Who knows where that last prototype ended up, probably tossed aside somewhere as if it were useless junk..." 02660_ Dropped ECM Suite. 02661_ Acquired Flightbrick. 02742_ 09VFCZONMB1HXWIC6QV 02842_ System corrupted: Energy discharge (-76). 02897_ System corrupted: Matter fused (-9). 02922_ RN-L21(R) suffers critical hit (Burn). 02924_ Lgt. Treads destroyed. 02928_ RN-L21(R) destroyed. 02929_ Extracted 1 energy. 02930_ Med. Laser destroyed. 02930_ Acquired 56 matter. Map ----- +----------------------------------------------------+ | ##" ## ### #?? #????????????? | | "" # # ###??? ##????????????? | | "# "" ## # #?????###?????????????? | | ##""##" "" ###### # # ##?????????????????????? | | ?####"" ""##????#### ####??????????????????????? | | ????#""""##????????## #????####????????????????? | | ???# """"#?????????# ##????# #????????????????? | | ???# ""###????????## #?????# #????????????????? | | ???# ""???????????# ###?????# ##???????????????? | | ???#??????????????# #???????# ##??????????????? | | ??????????????????## #???????# ##?????????????? | | ???????????????????# ###?????# #?????????????? | | ???????????????????# #????## #?????????????? | | ??????????????????## ##?#### #?????????????? | | ???????????######## ##?## ##????????????? | | ???????????# #### #????????????? | | ???????????# ## #????????????? | | ???????????# ##????????????? | | ???????????# ## #?????????????? | | ???????????#### #?## ##?????????????? | | ??????????????##???# ## ###??????????????? | | ??????????????????# ##### ##????????????????? | | ??????????????????# ##??## ####?????????????????? | | ??????????????????####??## #????????????????????? | | ?????????????????########R #????????????????????? | | ????????????????## =@!##????????????????????? | | ????????????????# ###?????????????????????? | | ????????????????### " #???????????????????????? | | ??????????????????##"" ???????????????????????? | | ???????????????????#" " ???????????????????????? | | ???????????????????#""" ??????????????????????? | | ???????????????????#"" " ??????????????????????? | | ???????????????????#" " "#?????????????????????? | | ???????????????????? ##"""##?????????????????????? | | ????????????????????#?##""#??????????????????????? | | ???????????????????????? #??????????????????????? | | ????????????????????????? ??????????????????????? | | ????????????????????????? ???????????????????????? | | ?????????????????????????????????????????????????? | | ?????????????????????????????????????????????????? | | ?????????????????????????????????????????????????? | | ?????????????????????????????????????????????????? | | ?????????????????????????????????????????????????? | | ?????????????????????????????????????????????????? | | ?????????????????????????????????????????????????? | | ?????????????????????????????????????????????????? | | ?????????????????????????????????????????????????? | | ?????????????????????????????????????????????????? | | ?????????????????????????????????????????????????? | | ?????????????????????????????????????????????????? | +----------------------------------------------------+ Best States ------------- Heat Dissipation 25 Energy Generation 10 Energy Capacity 250 Matter Stores 300 Matter Capacity 300 Sight Range 16 Terrain Scan Density 10 Armor Coverage 150 Core Shielding 20 Evasion (%) 40 Recoil Reduction 2 Authchip Count 5 Item Schematics ----------------- None Robot Schematics ------------------ None Fabricated ------------ Nothing Repaired ---------- Assault Rifle | 51% | -10/Materials Studied --------- None Alien Tech Used ----------------- None Achievements -------------- None Challenges ------------ None Game ------ Seed JunkScrapPod Manual? 0 Play Time 00:21:52 Cumulative 257.7 hours Start 2025.11.11 @ 18:29:48 End 2025.11.11 @ 18:50:04 Sessions 1 Manual Loads 0 Difficulty Rogue Special Mode None Game No. 74 Rogue 68 Adventurer 0 Explorer 6 Win Type - Total 14 Types 6/1/2/1/1/0/1/1/0/1 Lore% 81 Gallery% 74 Achievement% 59 Wizard Run 0 Options --------- Layout 1 ASCII 0 Keyboard 0 Movement Mouse Keybinds 0 Fullscreen 2 Font 24/Smallcaps Map View 50x35 Zoom Use 0% Tactical HUD 1 Map Filters NONE Filters NONE Steam 1 RUN: 2303f8b8-ce7e-4437-8fcb-13eff49278af